bitfinex/quotes_ETHUSD_20251116
["timestamp","ask_amount","ask_price","bid_price","bid_amount"]
[1763323821827,0.40589747,3114.0,3113.3,0.001]
[1763323824841,1.1337408,3114.6,3113.9,0.4766]
[1763323825154,0.30022423,3114.5,3113.9,0.4766]
[1763323825334,0.30022423,3114.4,3113.9,0.4766]
[1763323825530,0.30022423,3114.5,3113.9,0.4766]
[1763323825752,0.30022423,3114.4,3113.9,0.4766]
[1763323826066,1.1337408,3114.6,3113.4,0.4546]
[1763323826067,0.31012423,3114.5,3113.4,0.4546]
[1763323826266,0.30022423,3114.4,3113.4,0.4546]
[1763323826483,0.79385794,3114.5,3113.4,0.4546]
[1763323826484,0.30022423,3114.3,3113.4,0.4546]
[1763323826776,0.30022423,3114.4,3113.4,0.4546]
[1763323827137,1.1337408,3114.2,3113.4,0.4546]
[1763323827460,1.54062827,3114.2,3113.4,0.4546]
[1763323832849,7.94062827,3114.2,3113.4,0.4546]
[1763323833361,0.3008377,3114.1,3113.4,0.4546]
[1763323834386,7.94062827,3114.2,3113.4,0.4546]
[1763323834578,0.30100812,3114.1,3113.4,0.4546]
[1763323834886,7.94062827,3114.2,3113.4,0.4546]
[1763323835175,0.30100861,3114.1,3113.4,0.4546]
[1763323835348,7.94062827,3114.2,3113.4,0.4546]
[1763323835549,0.30102709,3114.1,3113.4,0.4546]
[1763323835773,0.30102709,3114.0,3113.4,0.4546]
[1763323835949,0.30102709,3114.1,3113.4,0.4546]
[1763323836279,0.30102709,3114.0,3113.4,0.4546]
[1763323836463,0.30102709,3114.1,3113.4,0.4546]
[1763323836650,0.30102709,3114.0,3113.4,0.4546]
[1763323837651,0.78395794,3114.1,3113.4,0.4546]
[1763323840473,0.30107685,3114.0,3113.4,0.4546]
[1763323840675,0.78395794,3114.1,3113.4,0.4546]
[1763323840865,0.30107689,3114.0,3113.4,0.4546]
[1763323841041,0.78395794,3114.1,3113.4,0.4546]
[1763323841242,0.30107661,3114.0,3113.4,0.4546]
[1763323841442,0.78395794,3114.1,3113.4,0.4546]
[1763323841679,0.30110834,3114.0,3113.4,0.4546]
[1763323841852,0.78395794,3114.1,3113.4,0.4546]
[1763323842053,0.30110849,3114.0,3113.4,0.4546]
[1763323842360,0.78395794,3114.1,3113.4,0.4546]
[1763323842536,0.70800456,3114.0,3113.4,0.4546]
[1763323842738,0.40688747,3114.0,3113.4,0.4546]
[1763323842977,7.5337408,3114.2,3113.4,0.4546]
[1763323843149,0.30111165,3114.1,3113.4,0.4546]
[1763323843480,0.30111165,3114.0,3113.4,0.4546]
[1763323843773,7.5337408,3114.2,3113.4,0.4546]
[1763323843974,0.30121499,3114.1,3113.4,0.4546]
[1763323844179,0.30121499,3114.0,3113.4,0.4546]
[1763323844479,0.30121499,3113.9,3113.4,0.4546]
[1763323844677,0.78349558,3114.1,3113.4,0.4546]
[1763323844901,0.30137821,3114.0,3113.4,0.4546]
[1763323845103,0.30137821,3113.9,3113.4,0.4546]
[1763323845319,0.78349558,3114.1,3113.4,0.4546]
[1763323845519,0.30142689,3114.0,3113.4,0.4546]
[1763323845679,0.30142689,3113.9,3113.4,0.4546]
[1763323845881,0.78349558,3114.1,3113.4,0.4546]
[1763323846078,0.30143257,3114.0,3113.4,0.4546]
[1763323846398,0.30143257,3113.9,3113.4,0.4546]
[1763323846605,7.5337408,3114.2,3114.1,0.4766]
[1763323846766,7.83524298,3114.2,3114.1,0.4766]
[1763323848013,7.83524298,3114.2,3113.9,0.4546]
[1763323848170,0.30150218,3114.1,3113.9,0.4546]
[1763323848370,7.5337408,3114.2,3113.9,0.4546]
[1763323848694,0.30158234,3114.1,3113.7,0.4546]
[1763323848891,0.69482541,3114.5,3113.5,0.4546]
[1763323849075,0.48443898,3114.4,3113.5,0.4546]
[1763323849273,0.30158236,3114.3,3113.5,0.4546]
[1763323849474,0.30158236,3114.2,3113.5,0.4546]
[1763323849775,0.18285662,3114.4,3113.5,0.4546]
[1763323850002,0.3015636,3114.3,3113.5,0.4546]
[1763323850209,0.3015636,3114.2,3113.5,0.4546]
[1763323850409,0.18285662,3114.4,3113.5,0.4546]
[1763323850572,0.30154722,3114.3,3113.5,0.4546]
[1763323850906,1.1337408,3113.9,3113.5,0.4546]
[1763323851209,1.1436408,3113.6,3113.4,0.001]
[1763323851524,1.73109314,3113.9,3113.8,0.4588]
[1763323851805,2.03265558,3113.9,3113.8,0.9172]
[1763323851998,2.03265558,3113.9,3113.8,0.4588]
[1763323855627,4.83978257,3115.0,3113.9,0.405504]
[1763323855799,0.30148334,3114.9,3114.3,0.1984]
[1763323856016,4.83978257,3115.0,3114.3,0.1984]
[1763323856204,1.43521975,3114.9,3114.4,0.4584]
[1763323856418,1.1337408,3114.9,3114.4,0.4584]
[1763323856720,4.83978257,3115.0,3114.8,0.4588]
[1763323856908,0.30118419,3114.9,3114.8,0.4588]
[1763323857110,0.30118419,3114.9,3113.7,0.4584]
[1763323857111,0.31108419,3114.9,3113.7,0.4584]
[1763323857313,0.0099,3114.7,3113.8,0.4584]
[1763323857630,1.1337408,3114.4,3113.8,0.4584]
[1763323857828,1.1337408,3114.4,3113.4,0.001]
[1763323857829,0.0099,3113.9,3113.4,0.4594]
[1763323858547,0.78405343,3114.3,3113.4,0.4594]
[1763323858897,0.30114409,3114.2,3113.4,0.4594]
[1763323859311,0.30114409,3114.3,3113.4,0.4594]
[1763323859512,0.30114409,3114.2,3113.4,0.4594]
[1763323859696,0.0099,3114.3,3113.4,0.4594]
[1763323859911,0.30114692,3114.2,3113.4,0.4594]
[1763323860114,1.1337408,3114.6,3113.4,0.4594]
[1763323860309,1.10413056,3114.5,3113.4,0.4594]
[1763323860512,0.3011469,3114.4,3113.4,0.4594]
[1763323860733,0.50406989,3114.8,3114.4,0.4588]
[1763323860941,0.50406989,3114.8,3114.5,0.4588]
[1763323861145,0.0099,3115.2,3114.1,0.1984]
[1763323861345,1.1337408,3115.5,3114.1,0.1984]
[1763323861346,0.30101773,3115.1,3114.1,0.1984]
[1763323861554,0.30101773,3115.0,3114.2,0.4584]
[1763323861750,0.30101773,3114.9,3114.2,0.4584]
[1763323861965,0.30101773,3114.8,3114.2,0.4584]
[1763323862248,0.30101773,3115.3,3114.2,0.4584]
[1763323862448,0.30101773,3115.2,3114.2,0.4584]
[1763323862651,1.1337408,3115.0,3114.1,0.1984]
[1763323862953,1.13410316,3114.9,3114.1,0.1984]
[1763323863159,0.30101773,3114.8,3114.1,0.6568]
[1763323863818,0.30101773,3114.8,3114.2,0.4584]
[1763323864018,1.82696796,3115.5,3114.7,0.4588]
[1763323864258,0.30087207,3115.4,3114.8,0.4588]
[1763323864417,0.51365607,3115.3,3114.2,0.4584]
[1763323864619,0.66165665,3115.2,3114.2,0.4584]
[1763323864943,0.30087207,3115.1,3114.2,0.4584]
[1763323865147,0.36078458,3115.0,3114.2,0.4584]
[1763323865727,0.35801683,3115.2,3114.2,0.4584]
[1763323865932,0.30070779,3115.1,3114.2,0.4584]
[1763323866131,0.30070779,3115.3,3114.2,0.4584]
[1763323866435,0.30070779,3115.2,3114.2,0.4584]
[1763323866636,0.30070779,3115.3,3114.2,0.4584]
[1763323866824,0.30070779,3115.2,3114.2,0.4584]
[1763323867029,0.30070779,3115.3,3114.2,0.4584]
[1763323867406,0.0099,3114.3,3113.8,0.001]
[1763323867604,0.30070779,3114.4,3113.9,0.4584]
[1763323867907,0.0099,3114.0,3113.8,0.001]
[1763323868103,0.30070779,3114.2,3113.8,0.001]
[1763323868398,0.31061568,3114.4,3113.8,0.001]
[1763323868556,0.30071568,3114.3,3113.8,0.001]
[1763323868760,0.30071568,3114.2,3113.8,0.001]
[1763323868959,0.30071568,3114.3,3113.8,0.001]
[1763323869160,0.30071568,3114.2,3113.8,0.001]
[1763323869477,0.0099,3114.4,3113.8,0.001]
[1763323869478,0.30071568,3114.3,3113.8,0.001]
[1763323869690,0.30071568,3114.2,3113.8,0.001]
[1763323869857,0.30071568,3114.3,3113.8,0.001]
[1763323870063,0.30071568,3114.2,3113.8,0.001]
[1763323870263,0.30071568,3114.3,3113.8,0.001]
[1763323870466,0.30071568,3114.2,3113.8,0.001]
[1763323870665,0.0099,3113.9,3113.8,0.001]
[1763323871121,0.82076151,3113.9,3113.8,0.001]
[1763323872403,8.35450231,3113.9,3113.8,0.001]
[1763323873616,8.5117447,3113.9,3113.8,0.001]
[1763323873799,9.20424741,3113.9,3113.8,0.001]
[1763323874203,6.399,3113.8,3113.4,0.001]
[1763323874515,6.399,3113.8,3112.9,0.001]
[1763323874516,8.0298366,3113.1,3112.9,0.001]
[1763323874663,14.73945228,3113.1,3112.9,0.001]
[1763323874901,14.74935228,3113.1,3112.9,0.001]
[1763323875107,15.24959811,3113.1,3112.9,0.001]
[1763323875433,8.33370231,3113.1,3112.9,0.001]
[1763323875636,1.1337408,3113.1,3113.0,0.9373]
[1763323876007,1.1337408,3113.1,3113.0,0.4737]
[1763323876245,1.1337408,3113.1,3113.0,0.001]
[1763323876540,1.1337408,3113.1,3113.0,0.4737]
[1763323876846,1.1337408,3113.1,3113.0,0.9373]
[1763323878305,1.1337408,3113.1,3113.0,0.001]
[1763323878739,1.1436408,3113.1,3113.0,0.001]
[1763323879822,7.5327408,3113.1,3113.0,0.001]
[1763323880022,8.28601488,3113.1,3113.0,0.001]
[1763323880360,8.28601488,3113.1,3113.0,0.4737]
[1763323880361,7.5327408,3113.1,3113.0,0.4737]
[1763323880553,7.5426408,3113.1,3113.0,0.001]
[1763323880766,7.5327408,3113.1,3113.0,0.4737]
[1763323880914,7.5327408,3113.1,3113.0,0.9373]
[1763323881113,6.399,3113.1,3113.0,0.9373]
[1763323881421,7.5327408,3113.1,3113.0,0.9373]
[1763323884930,7.5327408,3113.1,3113.0,0.4737]
[1763323885851,7.5327408,3113.1,3113.0,0.932]
[1763323887618,7.5327408,3113.1,3113.0,0.001]
[1763323888044,7.5327408,3113.1,3113.0,0.4702]
[1763323888246,8.28621488,3113.1,3113.0,0.001]
[1763323888634,7.5327408,3113.1,3113.0,0.9285]
[1763323890620,0.002,3113.3,3113.0,0.9285]
[1763323890820,0.002,3113.3,3113.2,1.059404]
[1763323891250,0.002,3113.3,3113.2,1.517704]
[1763323902550,0.002,3113.7,3113.3,0.405504]
[1763323902877,6.399,3115.2,3113.7,0.405504]
[1763323903091,0.6399,3115.1,3114.2,0.4692]
[1763323903378,1.7736408,3115.1,3114.2,0.4692]
[1763323903579,1.7736408,3115.1,3114.3,0.643]
[1763323904138,0.6399,3115.1,3114.4,0.4583]
[1763323904345,1.7736408,3115.1,3114.4,0.4583]
[1763323904540,6.8960958,3115.9,3114.5,0.405504]
[1763323904855,1.44984723,3115.8,3114.5,0.405504]
[1763323905052,0.30020643,3115.7,3114.5,0.405504]
[1763323905390,0.31610643,3115.7,3114.4,0.405504]
[1763323905547,0.0159,3115.6,3114.5,0.4583]
[1763323906682,1.1337408,3115.3,3114.3,0.1847]
[1763323906990,0.85337409,3115.2,3114.3,0.643]
[1763323908182,0.85337409,3115.2,3114.3,0.1847]
[1763323908346,0.0159,3115.1,3114.0,0.4583]
[1763323908702,0.0159,3115.1,3113.4,0.405504]
[1763323908703,1.1337408,3114.8,3113.4,0.405504]
[1763323909280,1.1337408,3114.8,3113.5,0.4583]
[1763323909489,0.33747132,3114.7,3113.5,0.4583]
[1763323909820,0.0159,3113.6,3113.1,0.001]
[1763323910001,1.1496408,3113.2,3113.1,0.001]
[1763323910185,1.95421446,3113.2,3113.1,0.001]
[1763323910387,0.80457366,3113.2,3113.1,0.001]
[1763323910694,1.1337408,3113.7,3113.1,1.1132]
[1763323911685,1.1337408,3113.7,3113.1,0.001]
[1763323911686,0.0159,3113.2,3113.1,0.001]
[1763323912018,1.1496408,3113.2,3113.1,0.001]
[1763323918810,7.86600726,3113.2,3113.1,0.001]
[1763323919053,8.65260799,3113.2,3113.1,0.001]
[1763323920378,8.65260799,3113.2,3112.6,0.001]
[1763323920379,0.0159,3112.9,3112.6,0.001]
[1763323920675,7.86600726,3112.7,3112.6,0.001]
[1763323921362,7.88190726,3112.7,3112.6,0.001]
[1763323921570,8.28615194,3112.7,3112.6,0.001]
[1763323921753,8.27025194,3112.7,3112.6,0.001]
[1763323923796,14.66925194,3112.7,3112.6,0.001]
[1763323924146,14.68515194,3112.7,3112.6,0.001]
[1763323924342,14.68515194,3112.7,3112.5,0.001]
[1763323924549,0.0159,3112.4,3112.1,0.001]
[1763323924744,4.01428403,3110.0,3109.1,3.21636446]
[1763323924954,1.1337408,3111.4,3110.0,0.405504]
[1763323925147,1.1337408,3111.4,3111.0,0.4646]
[1763323925343,1.2217408,3111.9,3111.0,0.177]
[1763323925547,0.46,3111.8,3111.0,0.177]
[1763323926561,1.1337408,3111.4,3110.8,0.1948]
[1763323926888,1.1337408,3110.8,3109.2,0.405504]
[1763323927088,0.088,3111.9,3109.8,0.6672]
[1763323927089,1.1337408,3110.3,3109.8,0.6672]
[1763323927389,1.1337408,3110.8,3110.2,0.4646]
[1763323927609,6.71636646,3111.4,3110.4,0.405504]
[1763323927610,1.1337408,3111.3,3110.4,0.405504]
[1763323927808,1.1337408,3111.3,3110.7,0.4646]
[1763323928184,1.1337408,3111.3,3110.7,0.936]
[1763323928708,1.1337408,3111.3,3110.8,0.4714]
[1763323929797,0.2819,3110.9,3110.1,0.4714]
[1763323929984,0.78501073,3111.2,3110.2,0.405504]
[1763323930384,0.78501073,3111.2,3110.3,0.4714]
[1763323931335,1.1337408,3111.3,3110.3,0.4714]
[1763323931610,0.46,3111.2,3110.3,0.4714]
[1763323931811,1.1337408,3111.3,3110.3,0.4714]
[1763323935302,1.1337408,3111.3,3110.4,0.405504]
[1763323935633,1.1337408,3111.3,3110.3,0.4714]
[1763323935634,1.1337408,3111.3,3110.6,0.405504]
[1763323935936,1.96475153,3111.3,3110.6,0.405504]
[1763323936241,1.96475153,3111.3,3110.6,0.4651]
[1763323936624,1.96475153,3111.3,3109.8,0.1958]
[1763323936828,1.96475153,3111.3,3110.4,0.4651]
[1763323937033,0.4691,3112.8,3111.2,0.6343]
[1763323937205,6.71636646,3112.8,3111.4,0.405504]
[1763323937541,6.71636646,3112.8,3111.6,0.405504]
[1763323937858,1.1337408,3112.7,3111.8,0.405504]
[1763323938077,0.4691,3113.2,3112.6,0.4573]
[1763323938340,0.71854665,3113.1,3112.6,0.4573]
[1763323938548,0.71854665,3113.1,3113.0,0.4573]
[1763323938901,0.71854665,3113.1,3112.7,0.6466]
[1763323941409,0.71854665,3113.1,3112.7,0.1815]
[1763323943512,0.71854665,3113.1,3112.7,0.6501]
[1763323944925,0.50418795,3113.7,3113.0,0.4579]
[1763323945168,0.53853458,3114.0,3113.1,0.4579]
[1763323945450,0.002,3114.0,3113.2,0.405504]
[1763323945613,0.002,3114.0,3113.9,0.4579]
[1763323946409,0.002,3114.0,3113.9,0.9265]
[1763323947427,0.002,3114.0,3113.9,0.4579]
[1763323947628,0.6321,3114.0,3112.7,0.1815]
[1763323947836,1.1337408,3113.5,3112.7,0.1815]
[1763323948020,1.91875153,3113.5,3112.7,0.6501]
[1763323948222,0.3627,3113.9,3112.7,0.6501]
[1763323948223,0.1922,3113.9,3113.4,0.4579]
[1763323948861,0.1765,3113.5,3112.7,0.1815]
[1763323949031,1.3102408,3113.5,3112.7,0.1815]
[1763323949658,1.7631408,3113.5,3112.7,0.1815]
[1763323949951,0.4529,3113.4,3112.7,0.1815]
[1763323950181,0.17631408,3113.3,3112.7,0.1815]
[1763323953054,0.17631408,3113.3,3112.7,0.6501]
[1763323954368,0.17631408,3113.3,3112.8,0.405504]
[1763323954667,1.5894408,3113.7,3112.8,0.874104]
[1763323955185,1.5894408,3113.7,3112.7,0.1815]
[1763323955342,1.1337408,3113.7,3112.9,0.4686]
[1763323955668,1.1337408,3113.7,3112.7,0.1815]
[1763323955850,1.1337408,3113.7,3112.8,0.405504]
[1763323956375,0.002,3113.3,3112.8,0.405504]
[1763323956741,0.002,3113.3,3113.2,0.4579]
[1763323957346,0.002,3113.3,3113.2,0.863404]
[1763323957588,0.002,3113.3,3113.2,1.332004]
[1763323965350,0.002,3113.3,3113.2,0.9265]
[1763323967605,1.1337408,3114.2,3113.2,0.9265]
[1763323967778,0.52116073,3114.1,3113.2,0.9265]
[1763323968114,0.52116073,3114.1,3113.3,0.874104]
[1763323968622,0.52116073,3114.1,3113.4,0.4686]
[1763323970800,1.1337408,3114.2,3113.4,0.4686]
[1763323973155,1.1337408,3114.2,3113.2,0.405504]
[1763323973464,0.2867,3114.1,3113.2,0.405504]
[1763323973680,6.71636646,3113.3,3112.9,0.001]
[1763323973969,1.80537745,3113.2,3112.9,0.001]
[1763323974124,1.1337408,3113.2,3112.9,0.001]
[1763323974477,1.1337408,3113.6,3112.9,0.001]
[1763323974656,1.1337408,3113.6,3112.9,0.4813]
[1763323975968,1.1337408,3113.6,3112.9,0.001]
[1763323978057,0.0028,3113.0,3112.9,0.001]
[1763323978440,1.1337408,3113.1,3112.9,0.001]
[1763323978828,0.2818,3113.5,3112.9,0.001]
[1763323979134,0.30081961,3113.8,3112.9,0.001]
[1763323979358,0.30081961,3113.7,3112.9,0.4813]
[1763323979551,0.30081961,3113.8,3112.9,0.4813]
[1763323979759,0.58551961,3113.7,3112.9,0.4813]
[1763323979942,0.2847,3113.7,3112.9,0.4813]
[1763323980330,8.3176716,3113.9,3112.9,0.001]
[1763323980542,0.58549551,3113.8,3112.9,0.001]
[1763323980979,0.58549551,3113.8,3112.9,0.406504]
[1763323981545,0.58549551,3113.8,3112.9,0.886804]
[1763323982362,0.2847,3113.8,3112.9,0.886804]
[1763323982681,0.58554193,3113.8,3112.9,0.886804]
[1763323984468,0.2847,3113.8,3112.9,0.886804]
[1763323985498,0.0028,3113.0,3112.9,0.001]
[1763323985645,0.30093899,3113.6,3112.9,0.001]
[1763323985851,0.58563899,3113.7,3112.9,0.001]
[1763323986150,0.2847,3113.7,3112.9,0.001]
[1763323986348,0.30093936,3113.8,3112.9,0.4813]
[1763323986586,0.30093936,3113.7,3112.9,0.4813]
[1763323986747,0.30093936,3113.8,3112.9,0.4813]
[1763323986950,8.0329716,3113.9,3112.9,0.4813]
[1763323986951,0.30093936,3113.7,3112.9,0.4813]
[1763323987159,0.30093936,3113.8,3112.9,0.4813]
[1763323987366,0.30091872,3113.8,3112.9,0.4813]
[1763323992986,0.30091872,3113.8,3112.9,0.001]
[1763323993190,0.2847,3113.7,3112.9,0.406504]
[1763323994659,0.58561872,3113.7,3112.9,0.406504]
[1763323994861,0.2847,3113.7,3112.9,0.406504]
[1763323995275,0.58578492,3113.7,3112.9,0.406504]
[1763323995477,1.14657565,3113.7,3112.9,0.4813]
[1763323999471,0.50612812,3114.1,3113.6,0.6825]
[1763323999706,7.48519225,3113.9,3112.9,0.001]
[1763324000006,1.71970225,3113.8,3112.9,0.001]
[1763324000212,0.58596145,3113.7,3112.9,0.001]
[1763324000372,0.30126145,3113.6,3112.9,0.001]
[1763324000572,0.0028,3113.0,3112.9,0.001]
[1763324001394,1.1337408,3113.3,3112.9,0.001]
[1763324002895,5.97721834,3113.0,3112.9,0.001]
[1763324004245,1.1337408,3113.0,3112.9,0.9463]
[1763324005718,5.97721834,3113.0,3112.9,0.9463]
[1763324007935,5.97721834,3113.0,3112.9,1.351804]
[1763324009535,5.98001834,3113.0,3112.9,0.001]
[1763324009698,7.16105862,3113.0,3112.9,0.001]
[1763324009903,7.16105862,3113.0,3112.5,0.001]
[1763324009904,1.1337408,3112.9,3112.5,0.001]
[1763324010119,5.98001834,3112.6,3112.5,0.001]
[1763324010408,12.68036553,3112.6,3112.5,0.001]
[1763324010711,1.1337408,3112.5,3111.2,0.177]
[1763324010910,1.1337408,3112.0,3111.2,0.6498]
[1763324011140,1.1337408,3112.0,3111.3,0.405504]
[1763324011346,0.136,3111.9,3110.0,0.001]
[1763324011537,0.4653,3111.9,3110.0,0.001]
[1763324011745,0.4653,3111.9,3111.1,0.405504]
[1763324012104,0.4653,3111.9,3111.1,0.878304]
[1763324012317,1.23499206,3111.9,3111.1,0.878304]
[1763324012739,1.1337408,3112.0,3111.8,0.4725]
[1763324012943,1.1337408,3112.0,3111.3,0.405504]
[1763324012944,0.2185,3111.9,3111.3,0.405504]
[1763324014043,0.136,3112.2,3110.7,0.6595]
[1763324014044,0.3282,3111.4,3110.7,0.6595]
[1763324014343,0.0022,3111.3,3110.7,0.1867]
[1763324016441,1.1337408,3111.5,3111.2,0.4725]
[1763324016646,1.4630408,3112.0,3111.2,0.4725]
[1763324016840,0.83701016,3111.9,3111.2,0.4725]
[1763324019649,0.83701016,3111.9,3111.2,0.9453]
[1763324020145,0.83701016,3111.9,3111.3,0.4728]
[1763324020347,0.136,3112.2,3111.8,0.4725]
[1763324023168,1.1337408,3112.5,3111.8,0.9453]
[1763324023542,1.1337408,3112.6,3111.8,0.9453]
[1763324023869,0.002,3112.2,3111.8,0.9453]
[1763324024057,0.002,3112.2,3111.9,0.878304]
[1763324024375,0.002,3112.2,3112.1,0.4725]
[1763324025367,0.002,3112.2,3112.1,1.132]
[1763324025536,0.002,3112.2,3111.9,0.405504]
[1763324025741,0.002,3112.2,3111.9,0.4728]
[1763324026944,0.002,3112.2,3111.1,0.405504]
[1763324027146,0.002,3112.2,3111.5,0.405504]
[1763324027346,0.002,3112.2,3111.5,0.878304]
[1763324027942,0.2185,3111.6,3111.1,0.405504]
[1763324028173,0.2185,3111.6,3111.0,0.1867]
[1763324028552,0.2185,3111.6,3111.1,0.405504]
[1763324028738,0.2185,3111.6,3111.0,0.1867]
[1763324028966,0.2185,3111.6,3111.1,0.878304]
[1763324029162,0.2185,3111.6,3111.1,0.4728]
[1763324029439,0.2185,3111.6,3111.2,0.4728]
[1763324030964,1.1337408,3111.8,3111.2,0.4728]
[1763324031173,1.91983488,3111.8,3111.2,0.4728]
[1763324031872,1.1337408,3111.6,3111.2,0.4785]
[1763324032073,1.1337408,3111.6,3111.3,0.405504]
[1763324032276,1.1337408,3111.6,3111.5,0.4581]
[1763324032672,1.1337408,3111.6,3111.5,0.9366]
[1763324032877,1.1337408,3111.6,3111.5,1.342104]
[1763324033779,0.002,3112.2,3111.6,0.405504]
[1763324033976,0.002,3112.2,3111.7,0.4785]
[1763324037678,0.2185,3111.8,3110.7,0.1867]
[1763324037897,1.1337408,3111.6,3110.7,0.1867]
[1763324038099,2.26745096,3111.6,3110.7,0.1867]
[1763324038375,2.26745096,3111.6,3110.8,0.405504]
[1763324038885,1.93815096,3111.6,3110.7,0.1867]
[1763324039047,1.1337408,3111.4,3110.7,0.1867]
[1763324039247,1.1337408,3111.4,3110.8,0.405504]
[1763324039972,1.52017605,3111.4,3110.8,0.405504]
[1763324040909,8.24480231,3111.4,3110.8,0.405504]
[1763324041094,8.24480231,3111.4,3111.1,0.001]
[1763324042405,7.85836706,3111.4,3111.1,0.001]
[1763324042606,0.2185,3111.2,3111.1,0.001]
[1763324043502,8.18656706,3111.4,3111.1,1.1232]
[1763324043503,1.1337408,3111.4,3111.1,1.1232]
[1763324043677,1.1337408,3111.4,3111.3,0.4581]
[1763324044104,1.1337408,3111.4,3111.1,0.1866]
[1763324044802,1.1337408,3111.4,3111.1,0.6651]
[1763324046607,1.1337408,3111.4,3111.3,0.4581]
[1763324046916,1.1337408,3111.8,3111.3,0.4581]
[1763324047109,1.1337408,3111.8,3111.4,0.9366]
[1763324047411,0.002,3112.2,3111.7,0.4581]
[1763324047707,0.002,3112.2,3111.8,0.4581]
[1763324047898,0.30316655,3112.2,3111.8,0.4581]
[1763324048239,0.002,3112.2,3111.8,0.4581]
[1763324048528,0.3313,3112.2,3111.5,0.4785]
[1763324048727,1.15026671,3112.2,3111.5,0.4785]
[1763324048897,1.32532406,3112.2,3111.5,0.4785]
[1763324049422,0.82096671,3112.2,3111.5,0.4785]
[1763324052297,0.3293,3111.6,3111.1,0.001]
[1763324052531,1.1359408,3111.2,3111.1,0.001]
[1763324054838,0.50445894,3111.8,3111.1,0.4591]
[1763324054839,1.1337408,3111.7,3111.1,0.4591]
[1763324055139,0.30115133,3111.6,3111.1,0.4591]
[1763324056198,0.30115133,3111.6,3111.1,0.9091]
[1763324056402,0.30115133,3111.6,3111.5,0.477]
[1763324056602,1.1357408,3112.2,3111.5,0.477]
[1763324056804,1.08718986,3112.1,3111.6,0.927]
[1763324056999,0.002,3112.2,3111.7,0.45]
[1763324057202,1.43686455,3112.2,3111.7,0.45]
[1763324057403,1.1357408,3112.2,3111.7,0.45]
[1763324057836,1.1357408,3112.2,3111.1,0.001]
[1763324057837,1.1357408,3112.2,3111.3,0.405504]
[1763324058034,0.30116006,3112.1,3111.5,0.405504]
[1763324058410,0.30116006,3112.1,3111.1,0.001]
[1763324058643,0.30116006,3112.1,3111.5,0.45]
[1763324058825,1.11731277,3112.1,3111.5,0.45]
[1763324059146,0.81615271,3112.1,3111.5,0.45]
[1763324061434,1.1357408,3112.2,3111.5,0.45]
[1763324061917,0.30113627,3112.1,3111.5,0.45]
[1763324062120,0.2185,3111.6,3111.1,0.001]
[1763324062522,0.5467,3111.6,3111.1,0.001]
[1763324062729,1.38720671,3111.6,3111.1,0.001]
[1763324063104,1.05900671,3111.6,3111.1,0.001]
[1763324063330,0.002,3112.2,3111.5,0.4517]
[1763324063643,1.43489556,3112.1,3111.1,0.001]
[1763324063845,0.30115476,3112.0,3111.1,0.4548]
[1763324064045,0.30115476,3111.9,3111.1,0.4548]
[1763324064258,0.30115476,3112.0,3111.1,0.4548]
[1763324064464,0.47757432,3111.9,3111.1,0.4548]
[1763324064665,0.30115476,3111.8,3111.1,0.4548]
[1763324064865,0.17641956,3111.9,3111.1,0.4548]
[1763324065079,0.47757432,3111.9,3111.1,0.4548]
[1763324065287,0.30115476,3111.8,3111.1,0.4548]
[1763324065868,0.17641956,3111.9,3111.1,0.4548]
[1763324066068,0.47757432,3111.9,3111.1,0.4548]
[1763324066275,0.30115476,3111.8,3111.2,0.405504]
[1763324066644,0.17641956,3111.9,3111.2,0.4538]
[1763324066870,0.47757432,3111.9,3111.2,0.4538]
[1763324067175,0.30115476,3111.8,3111.2,0.4538]
[1763324067868,0.17641956,3111.9,3111.2,0.4538]
[1763324068050,0.30115476,3111.8,3111.2,0.4538]
[1763324068250,0.51965476,3111.8,3111.1,0.001]
[1763324068572,0.30115476,3111.8,3111.1,0.001]
[1763324068775,0.3293,3111.7,3111.1,0.001]
[1763324069333,0.2185,3111.2,3111.1,0.001]
[1763324069877,1.1337408,3111.6,3111.1,0.001]
[1763324070070,1.4630408,3111.6,3111.1,0.001]
[1763324072978,0.2185,3111.2,3111.1,0.001]
[1763324073475,0.3282,3111.5,3111.1,0.001]
[1763324073683,1.95250751,3111.6,3111.1,0.001]
[1763324073867,2.28180751,3111.6,3111.1,0.001]
[1763324074174,0.2185,3111.2,3111.1,0.001]
[1763324074976,5.98221818,3111.2,3111.1,0.4527]
[1763324075177,1.1337408,3111.2,3111.1,0.9065]
[1763324075341,1.1337408,3111.2,3111.1,0.4527]
[1763324079679,1.3522408,3111.2,3111.1,0.001]
[1763324079883,1.1337408,3111.2,3111.1,0.001]
[1763324080084,1.1337408,3111.2,3111.1,0.9065]
[1763324081833,1.1337408,3111.2,3111.1,0.4527]
[1763324082180,1.1337408,3111.2,3111.1,1.312004]
[1763324084816,1.1337408,3111.2,3111.1,2.27813312]
[1763324085109,1.1337408,3111.2,3111.1,2.50604643]
[1763324100484,1.4630408,3111.2,3111.1,0.96712912]
[1763324100644,1.6815408,3111.2,3111.1,0.001]
[1763324100859,1.1337408,3111.2,3111.1,0.9207]
[1763324101191,1.1337408,3111.2,3111.1,1.326204]
[1763324101395,1.1337408,3111.2,3111.1,2.246904]
[1763324101575,1.1337408,3111.2,3111.1,2.4716944]
[1763324102163,0.002,3112.2,3111.1,2.4716944]
[1763324102164,0.002,3112.2,3111.2,0.405504]
[1763324102465,1.1357408,3112.2,3111.7,0.405504]
[1763324102661,1.1337408,3111.9,3111.4,0.869004]
[1763324103292,1.1337408,3111.9,3111.5,1.42952957]
[1763324103991,1.1337408,3111.9,3111.6,0.405504]
[1763324104285,1.3522408,3111.6,3111.1,0.001]
[1763324104486,0.0022,3111.2,3111.1,0.001]
[1763324105157,0.0022,3111.2,3111.1,0.4655]